fUSD/lending_fUSD_20260108
["ID","MTS","AMOUNT","RATE_DAILY","PERIOD"]
[400849596,1767844245812,-300.0,0.00016725,2]
[400849599,1767844245822,-654.79,0.00016734,2]
[400849602,1767844245831,-150.0,0.00016754,2]
[400849605,1767844245840,-2572.0,0.00016793,2]
[400849608,1767844245850,-150.0,0.000168,2]
[400849611,1767844245860,-1000.0,0.00016807,2]
[400849614,1767844245869,-1000.0,0.0001682,2]
[400849617,1767844245878,-300.0,0.00016822,2]
[400849620,1767844245889,-150.0,0.00016846,2]
[400849623,1767844245899,-304.30680198,0.00016865,2]
[400849626,1767844245908,-569.43,0.00016867,2]
[400849629,1767844245917,-300.0,0.00016873,2]
[400849631,1767844245926,-300.0,0.00016888,2]
[400849633,1767844245938,-150.0,0.00016892,2]
[400849635,1767844245947,-663.93287602,0.00016924,2]
[400849637,1767844245956,-150.0,0.00016938,2]
[400849639,1767844245966,-2500.0,0.00016954,2]
[400849641,1767844245975,-2500.0,0.00016954,2]
[400849644,1767844245985,-1502.28599053,0.00016954,2]
[400849646,1767844245994,-2181.44262662,0.00016954,2]
[400849648,1767844246004,-1502.55797273,0.00016954,2]
[400849650,1767844246013,-2003.11520818,0.00016954,2]
[400849652,1767844246023,-2500.0,0.00016954,2]
[400849654,1767844246031,-2500.0,0.00016954,2]
[400849655,1767844246040,-2500.0,0.00016954,2]
[400849658,1767844246050,-268.0,0.00016969,2]
[400849659,1767844246059,-300.0,0.00016978,2]
[400849662,1767844246070,-150.0,0.00016985,2]
[400849664,1767844246080,-500.0,0.00016986,2]
[400849665,1767844246090,-500.0,0.00016986,2]
[400849668,1767844246099,-500.0,0.00016986,2]
[400849670,1767844246111,-500.0,0.00016986,2]
[400849672,1767844246120,-211.60955392,0.00016986,2]
[400849674,1767844246129,-250.0,0.00017,2]
[400849676,1767844246139,-150.0,0.00017031,2]
[400849678,1767844246148,-500.0,0.00017033,2]
[400849680,1767844246158,-363.73176274,0.00017033,2]
[400849682,1767844246167,-875.27078638,0.0001704,2]
[400849684,1767844246177,-162.0,0.0001704,2]
[400849686,1767844246188,-833.0,0.0001704,2]
[400849688,1767844246197,-162.0,0.0001704,2]
[400849690,1767844246208,-173.0,0.0001704,2]
[400849692,1767844246219,-150.0,0.00017077,2]
[400849694,1767844246229,-20452.74518303,0.000171,2]
[400849696,1767844246238,-1000.0,0.00017112,2]
[400849698,1767844246248,-300.0,0.00017113,2]
[400849700,1767844246259,-150.0,0.00017123,2]
[400849702,1767844246268,-300.0,0.00017124,2]
[400849704,1767844246277,-300.0,0.00017139,2]
[400849706,1767844246287,-1152.0,0.00017156,2]
[400849708,1767844246297,-1152.0,0.00017156,2]
[400849710,1767844246307,-150.0,0.00017169,2]
[400849712,1767844246316,-341.0,0.0001717,2]
[400849714,1767844246325,-300.0,0.00017195,2]
[400849716,1767844246334,-157.19112422,0.00017207,2]
[400849718,1767844246344,-150.0,0.00017215,2]
[400849720,1767844246354,-1000.0,0.00017216,2]
[400849722,1767844246364,-150.0,0.00017244,2]
[400849724,1767844246373,-833.4,0.00017245,2]
[400849726,1767844246382,-1000.0,0.0001725,2]
[400849728,1767844246392,-1690.23374302,0.0001725,2]
[400849730,1767844246401,-1272.25514626,0.0001725,2]
[400849732,1767844246410,-150.0,0.00017262,2]
[400849734,1767844246419,-1000.0,0.00017274,2]
[400849736,1767844246428,-1000.0,0.00017279,2]
[400849738,1767844246439,-4609.0,0.00017281,2]
[400849740,1767844246449,-300.0,0.00017285,2]
[400849742,1767844246459,-1059.94309744,0.0001729,2]
[400849744,1767844246470,-17421.90574155,0.00017302,2]
[400849746,1767844246479,-150.0,0.00017308,2]
[400849748,1767844246488,-23411.60368284,0.0001731,2]
[400849750,1767844246497,-833.4,0.00017314,2]
[400849752,1767844246506,-407.0,0.00017322,2]
[400849764,1767844246608,-300.0,0.00017324,2]
[400849766,1767844246618,-300.0,0.00017341,2]
[400849768,1767844246627,-150.0,0.00017342,2]
[400849770,1767844246637,-150.0,0.00017354,2]
[400849772,1767844246648,-833.0,0.0001736,2]
[400849774,1767844246657,-162.0,0.0001736,2]
[400849776,1767844246667,-162.0,0.0001736,2]
[400849778,1767844246676,-162.0,0.0001736,2]
[400849780,1767844246685,-300.0,0.0001738,2]
[400849782,1767844246694,-833.4,0.00017382,2]
[400849784,1767844246704,-150.0,0.000174,2]
[400849786,1767844246713,-1000.0,0.000174,2]
[400849788,1767844246723,-1000.0,0.00017404,2]
[400849790,1767844246732,-300.0,0.00017411,2]
[400849792,1767844246742,-1000.0,0.0001744,2]
[400849794,1767844246750,-150.0,0.00017446,2]
[400849796,1767844246760,-300.0,0.0001745,2]
[400849798,1767844246770,-833.4,0.00017451,2]
[400849801,1767844246779,-300.0,0.00017459,2]
[400849803,1767844246788,-261.78,0.00017464,2]
[400849805,1767844246797,-666.72878,0.0001747,2]
[400849807,1767844246807,-346.92554585,0.0001747,2]
[400849808,1767844246816,-599.60298507,0.00017471,2]
[400849811,1767844246826,-688.49839244,0.00017472,2]
[400849813,1767844246835,-1252.0,0.00017475,2]
[400849815,1767844246844,-150.0,0.00017492,2]
[400849817,1767844246854,-2000.0,0.000175,2]
[400849819,1767844246863,-3000.0,0.00017502,2]
[400849821,1767844246872,-1513.79086394,0.00017502,2]
[400849823,1767844246881,-3000.0,0.00017502,2]
[400849824,1767844246890,-374.30420202,0.00017502,2]
[400849826,1767844246900,-3000.0,0.00017502,2]
[400849828,1767844246909,-833.4,0.0001752,2]
[400849830,1767844246918,-261.78,0.00017528,2]
[400849832,1767844246927,-241.73307518,0.00017534,2]
[400849834,1767844246939,-150.0,0.00017538,2]
[400849836,1767844246948,-569.43,0.00017542,2]
[400849838,1767844246957,-254.0,0.00017556,2]
[400849840,1767844246966,-490.0,0.00017562,2]
[400849842,1767844246978,-150.0,0.00017585,2]
[400849844,1767844246987,-833.4,0.00017588,2]
[400849846,1767844246997,-261.78,0.00017592,2]
[400849848,1767844247007,-1000.0,0.000176,2]
[400849850,1767844247015,-254.0,0.0001762,2]
[400849852,1767844247025,-150.0,0.00017631,2]
[400849854,1767844247034,-5309.74765664,0.0001764,2]
[400849856,1767844247043,-558.19,0.00017655,2]
[400849858,1767844247053,-833.4,0.00017657,2]
[400849860,1767844247062,-150.0,0.00017677,2]
[400849862,1767844247071,-300.0,0.00017679,2]
[400849864,1767844247081,-300.0,0.0001768,2]
[400849866,1767844247091,-162.0,0.0001768,2]
[400849868,1767844247100,-833.0,0.0001768,2]
[400849870,1767844247109,-300.0,0.00017685,2]
[400849872,1767844247118,-300.0,0.0001769,2]
[400849874,1767844247127,-1000.0,0.00017694,2]
[400849875,1767844247136,-4301.285688,0.000177,2]
[400849878,1767844247146,-163.7104368,0.00017705,2]
[400849880,1767844247158,-500.0,0.00017706,2]
[400849882,1767844247168,-25000.0,0.00017706,3]
[400849884,1767844247177,-1000.0,0.00017709,2]
[400849886,1767844247187,-25000.0,0.00017715,3]
[400849888,1767844247197,-787.62614361,0.00017716,2]
[400849890,1767844247207,-150.0,0.00017723,2]
[400849892,1767844247218,-833.4,0.00017725,2]
[400849894,1767844247227,-300.0,0.00017728,2]
[400849896,1767844247237,-300.0,0.00017746,2]
[400849898,1767844247247,-212.37385639,0.00017749,2]
[400849900,1767844247258,-150.0,0.00017769,2]
[400849902,1767844247267,-150.0,0.00017772,2]
[400849904,1767844247276,-661.33,0.00017775,2]
[400849905,1767844247287,-392.43,0.00017775,2]
[400849907,1767844247296,-661.33,0.00017775,2]
[400849909,1767844247306,-661.47,0.00017775,2]
[400849911,1767844247315,-1000.0,0.00017777,2]
[400849913,1767844247326,-833.4,0.00017794,2]
[400849915,1767844247335,-157.19112422,0.000178,2]
[400849917,1767844247345,-1000.0,0.000178,2]
[400849919,1767844247354,-150.0,0.00017815,2]
[400849921,1767844247363,-1000.0,0.00017818,2]
[400849923,1767844247373,-500.0,0.00017819,2]
[400849925,1767844247382,-967.96969,0.0001782,2]
[400849927,1767844247391,-967.9697,0.0001782,2]
[400849929,1767844247400,-298.06900978,0.0001783,2]
[400849931,1767844247410,-967.9697,0.0001783,2]
[400849933,1767844247419,-1000.0,0.00017831,2]
[400849935,1767844247429,-300.0,0.00017841,2]
[400849937,1767844247439,-300.0,0.00017841,2]
[400849939,1767844247448,-1000.0,0.00017843,2]
[400849941,1767844247457,-200.0,0.00017855,2]
[400849943,1767844247466,-200.0,0.00017856,2]
[400849945,1767844247475,-200.0,0.00017856,2]
[400849947,1767844247484,-200.0,0.00017856,2]
[400849949,1767844247493,-967.9697,0.0001786,2]
[400849950,1767844247502,-150.0,0.00017862,2]
[400849953,1767844247512,-1000.0,0.00017862,2]
[400849955,1767844247522,-833.4,0.00017863,2]
[400849957,1767844247532,-177.4888516,0.00017873,3]
[400849959,1767844247541,-1000.0,0.00017878,2]
[400849960,1767844247551,-967.9697,0.0001788,2]
[400849963,1767844247561,-500.0,0.00017882,2]
[400849965,1767844247570,-500.0,0.00017883,2]
[400849967,1767844247579,-11482.7929936,0.00017884,2]
[400849969,1767844247589,-527293.7987193,0.00017884,2]
[400849970,1767844247599,-212.37385639,0.00017887,2]
[400849972,1767844247608,-300.0,0.00017888,2]
[400849974,1767844247617,-10000.0,0.00017889,2]
[400849976,1767844247628,-25000.0,0.00017891,3]
[400849978,1767844247637,-875.27078638,0.000179,2]
[400849980,1767844247646,-637.69822592,0.000179,2]
[400849982,1767844247656,-23411.60368284,0.000179,2]
[400849984,1767844247666,-17421.90574155,0.000179,2]
[400849986,1767844247675,-923.06403135,0.000179,2]
[400849988,1767844247685,-846.37819096,0.000179,2]
[400849990,1767844247694,-25000.0,0.000179,3]
[400849992,1767844247704,-6704.03115369,0.000179,2]
[400849998,1767844247756,-6164.96884631,0.000179,2]
[400850000,1767844247767,-300.0,0.00017906,2]
[400850002,1767844247777,-150.0,0.00017908,2]
[400850004,1767844247786,-967.9697,0.0001791,2]
[400850006,1767844247795,-558.19,0.00017929,2]
[400850008,1767844247804,-833.4,0.00017931,2]
[400850010,1767844247814,-150.0,0.00017954,2]
[400850012,1767844247823,-1000.0,0.00017956,2]
[400850014,1767844247833,-1000.0,0.00017959,2]
[400850016,1767844247843,-1000.0,0.0001797,2]
[400850018,1767844247852,-500.0,0.0001797,2]
[400850020,1767844247861,-1000.0,0.0001797,2]
[400850022,1767844247871,-500.0,0.0001797,2]
[400850024,1767844247880,-1000.0,0.0001797,2]
[400850026,1767844247889,-500.0,0.0001797,2]
[400850028,1767844247898,-500.0,0.0001797,2]
[400850030,1767844247906,-1000.0,0.0001797,2]
[400850032,1767844247914,-984.41347442,0.0001797,2]
[400850034,1767844247923,-1000.0,0.0001797,2]
[400850036,1767844247932,-1000.0,0.0001797,2]
[400850038,1767844247942,-1000.0,0.0001797,2]
[400850040,1767844247956,-1000.0,0.0001797,2]
[400850041,1767844247966,-1000.0,0.0001797,2]
[400850043,1767844247975,-1246.54474908,0.0001797,2]
[400850045,1767844247984,-156.0,0.00017973,2]
[400850047,1767844247993,-500.0,0.00017973,2]
[400850049,1767844248002,-500.0,0.00017973,2]
[400850051,1767844248012,-500.17178809,0.00017973,2]
[400850053,1767844248021,-633.01352033,0.00017973,2]
[400850055,1767844248030,-500.0,0.00017973,2]
[400850057,1767844248040,-501.18870733,0.00017973,2]
[400850059,1767844248049,-500.75581913,0.00017973,2]
[400850061,1767844248058,-338.62982115,0.00017973,2]
[400850063,1767844248067,-1000.0,0.00017973,2]
[400850065,1767844248077,-500.0,0.00017973,2]
[400850067,1767844248086,-150.0,0.00017973,2]
[400850069,1767844248095,-500.0,0.00017982,2]
[400850071,1767844248104,-1186.44134713,0.0001799,2]
[400850073,1767844248114,-1186.44134713,0.0001799,2]
[400850075,1767844248123,-194.549792,0.00017997,2]
[400850077,1767844248131,-177.65368226,0.00017999,2]
[400850079,1767844248140,-300.0,0.00017999,2]
[400850081,1767844248149,-500.0,0.00017999,2]
[400850082,1767844248158,-500.0,0.00017999,2]
[400850085,1767844248168,-500.0,0.00017999,2]
[400850086,1767844248178,-500.0,0.00017999,2]
[400850088,1767844248188,-500.0,0.00017999,2]
[400850090,1767844248197,-500.0,0.00017999,2]
[400850092,1767844248208,-500.0,0.00017999,2]
[400850094,1767844248224,-338.00886573,0.00017999,2]
[400850096,1767844248233,-499.33044517,0.00017999,2]
[400850098,1767844248243,-176.95703058,0.00017999,2]
[400850100,1767844248252,-300.0,0.00017999,2]
[400850102,1767844248261,-454.76802559,0.00017999,2]
[400850104,1767844248271,-161.16461591,0.00017999,2]
[400850106,1767844248284,-300.0,0.00017999,2]
[400850108,1767844248293,-666.0,0.00017999,2]
[400850109,1767844248302,-300.0,0.00017999,2]
[400850111,1767844248311,-300.0,0.00017999,2]
[400850113,1767844248321,-666.0,0.00017999,2]
[400850115,1767844248331,-732.18530352,0.00017999,2]
[400850117,1767844248341,-5970.77362135,0.00017999,2]
[400850119,1767844248350,-154.67877044,0.00018,2]
[400850121,1767844248360,-4116069.83272734,0.00018,2]
[400850123,1767844248369,-1188.17087136,0.00018,2]
[400850125,1767844248379,-200.0,0.00018,2]
[400850127,1767844248388,-200.0,0.00018,2]
[400850129,1767844248397,-212.0,0.00018,2]
[400850131,1767844248406,-265.0,0.00018,2]
[400850133,1767844248415,-1027.64,0.00018,7]
[400850135,1767844248424,-512.89819875,0.00018,2]
[400850137,1767844248435,-512.89819875,0.00018,2]
[400850139,1767844248444,-512.89819875,0.00018,2]
[400850140,1767844248453,-512.89819875,0.00018,2]
[400850142,1767844248462,-512.89819875,0.00018,2]
[400850144,1767844248471,-512.89819875,0.00018,2]
[400850146,1767844248483,-512.89819875,0.00018,2]
[400850148,1767844248492,-512.89819875,0.00018,2]
[400850150,1767844248501,-512.89819875,0.00018,2]
[400850152,1767844248510,-512.89819874,0.00018,2]
[400850154,1767844248519,-512.89819874,0.00018,2]
[400850156,1767844248529,-512.89819874,0.00018,2]
[400850158,1767844248538,-512.89819874,0.00018,2]
[400850160,1767844248547,-512.89819874,0.00018,2]
[400850162,1767844248555,-512.89819874,0.00018,2]
[400850163,1767844248564,-512.89819874,0.00018,2]
[400850165,1767844248574,-512.89819874,0.00018,2]
[400850167,1767844248585,-512.89819874,0.00018,2]
[400850169,1767844248594,-512.89819874,0.00018,2]
[400850171,1767844248603,-512.89819874,0.00018,2]
[400850173,1767844248613,-215.166,0.00018,2]
[400850175,1767844248622,-250.0,0.00018,2]
[400850177,1767844248631,-210.242,0.00018,2]
[400850179,1767844248639,-226.419,0.00018,2]
[400850181,1767844248648,-250.0,0.00018,2]
[400850182,1767844248656,-157.369,0.00018,2]
[400850184,1767844248666,-297.977,0.00018,2]
[400850186,1767844248675,-190.919,0.00018,2]
[400850188,1767844248684,-163.809,0.00018,2]
[400850190,1767844248693,-211.956,0.00018,2]
[400850192,1767844248702,-150.0,0.00018,2]
[400850194,1767844248711,-250.0,0.00018,2]
[400850196,1767844248720,-2612.07118707,0.00018,2]
[400850198,1767844248730,-228.51,0.00018,2]
[400850200,1767844248740,-168.0,0.00018,2]
[400850202,1767844248750,-150.0,0.00018,2]
[400850204,1767844248759,-3198.7982358,0.00018,2]
[400850206,1767844248767,-150.0,0.00018,2]
[400850207,1767844248776,-10567.5440269,0.00018,2]
[400850209,1767844248786,-150.0,0.00018,2]
[400850211,1767844248795,-1518.74663393,0.00018,2]
[400850213,1767844248804,-151.0,0.00018,2]
[400850215,1767844248813,-161.93052883,0.00018,2]
[400850217,1767844248822,-1849831.53741413,0.00018,2]
[400850273,1767844249508,-21918.08337215,0.00018,2]
[400850287,1767844249646,-131743.98274428,0.00018,2]
[400850289,1767844249658,-16318.84519469,0.00018,2]
[400850291,1767844249670,-1727.05004987,0.00018,2]
[400850296,1767844249710,-4081757.36259488,0.00018,2]
[400850299,1767844249721,-964.59999993,0.00018,2]
[400850454,1767844251335,-1.7e-07,0.00018,2]
[400850475,1767844251596,-316.47033406,0.00012528,2]
[400850482,1767844251673,-276.02140121,0.00012321,2]
[400850484,1767844251688,-490.82832032,0.00012321,2]
[400850486,1767844251698,-2183.52966594,0.00012528,2]
[400850488,1767844251707,-18079.53905439,0.00017882,3]
[400850493,1767844251764,-942.99736551,0.00017882,3]
[400850495,1767844251774,-353.34,0.00017882,3]
[400850497,1767844251785,-400.23705092,0.00017882,3]
[400850499,1767844251796,-573.95549409,0.00017882,3]
[400850501,1767844251807,-4649.93103509,0.00017882,3]
[400850502,1767844251816,-4315.13087285,0.00018,2]
[400850504,1767844251827,-3029.76239465,0.00018,2]
[400850507,1767844251849,-39753.03809893,0.00018,2]
[400850509,1767844251860,-1141.6,0.00018,2]
[400850511,1767844251871,-727.39816523,0.00018,2]
[400850515,1767844251902,-2371.29992487,0.00018,2]
[400850517,1767844251913,-362.84828034,0.00018,2]
[400852408,1767844491448,-766.84972153,0.00012408,2]
[400852409,1767844506576,-300.0,0.00012451,2]
[400852517,1767845433361,-4301.285688,0.000133,2]
[400852518,1767845433372,-260.0,0.00013325,2]
[400852519,1767845433382,-250.0,0.00013392,2]
[400852520,1767845433392,-497.28566749,0.00013426,2]
[400852521,1767845433403,-419.22601395,0.00013428,2]
[400852522,1767845433414,-250.0,0.00013433,2]
[400852523,1767845433425,-300.0,0.0001346,2]
[400852524,1767845433435,-3419.62223735,0.00013496,2]
[400852525,1767845433445,-437.75824815,0.00013505,2]
[400852526,1767845433455,-320.38350169,0.00013528,2]
[400852527,1767845433466,-1200.0,0.0001354,2]
[400852528,1767845433476,-4814.83,0.00013541,2]
[400852529,1767845433486,-300.0,0.00013562,2]
[400852530,1767845433498,-300.0,0.00013562,2]
[400852531,1767845433508,-500.0,0.00013562,2]
[400852532,1767845433518,-315.34820647,0.00013562,2]
[400852533,1767845433528,-360.03546029,0.00013562,2]
[400852534,1767845433538,-311.96728485,0.00013562,2]
[400852535,1767845433547,-122816.08679212,0.00013563,2]
[400852536,1767845433559,-1244.01914214,0.00013563,2]
[400852537,1767845437833,-500.0,0.00013562,2]
[400852538,1767845437842,-500.0,0.00013562,2]
[400852539,1767845437852,-555.0575899,0.00013562,2]
[400852540,1767845437860,-769093.90489362,0.00013563,2]
[400852541,1767845437871,-106845.98917212,0.00013563,2]
[400852542,1767845437880,-497.28566749,0.00013596,2]
[400852543,1767845437890,-300.0,0.00013622,2]
[400852544,1767845437900,-26310.92,0.00013623,2]
[400852545,1767845437911,-1165.52,0.00013647,2]
[400852546,1767845437922,-2107.0,0.00013648,2]
[400852547,1767845437931,-150.0,0.00013662,2]
[400852548,1767845437940,-150.99,0.00013663,2]
[400852549,1767845437950,-4112.9,0.00013663,2]
[400852550,1767845437959,-999.99,0.00013663,2]
[400852551,1767845437969,-1178.68,0.00013663,2]
[400852552,1767845437978,-9999.99,0.00013663,2]
[400852553,1767845437987,-200.0,0.00013663,2]
[400852554,1767845437997,-337.42,0.00013695,2]
[400852555,1767845438006,-497.28566749,0.00013696,2]
[400852556,1767845438014,-9999.99,0.00013696,2]
[400852557,1767845438023,-299.99,0.00013696,2]
[400852558,1767845438032,-150.99,0.00013696,2]
[400852559,1767845438042,-9999.99,0.00013696,2]
[400852560,1767845438051,-500.0,0.00013698,2]
[400852562,1767845438061,-500.0,0.00013698,2]
[400852564,1767845438070,-500.0,0.00013698,2]
[400852566,1767845438080,-330.37464563,0.00013698,2]
[400852568,1767845438089,-500.0,0.00013698,2]
[400852605,1767845438420,-500.0,0.00013698,2]
[400852607,1767845438430,-500.0,0.00013698,2]
[400852609,1767845438440,-500.0,0.00013698,2]
[400852611,1767845438449,-512.38385976,0.00013698,2]
[400852612,1767845438458,-500.0,0.00013698,2]
[400852613,1767845438471,-500.0,0.00013698,2]
[400852614,1767845438480,-500.0,0.00013698,2]
[400852615,1767845438490,-500.0,0.00013698,2]
[400852616,1767845438499,-500.0,0.00013698,2]
[400852617,1767845438508,-500.0,0.00013698,2]
[400852618,1767845438517,-1000.0,0.00013728,2]
[400852619,1767845438527,-5704.04,0.00013757,2]
[400852620,1767845438536,-500.0,0.00013768,2]
[400852621,1767845438545,-3419.62223733,0.00013985,2]
[400852622,1767845438554,-419.22601395,0.00014011,2]
[400852623,1767845438563,-644.1,0.00014441,2]
[400852624,1767845438573,-3419.62223733,0.00014475,2]
[400852625,1767845438582,-166.66,0.00014489,2]
[400852626,1767845438591,-200.0,0.00014545,2]
[400852627,1767845438600,-419.22601395,0.00014594,2]
[400852628,1767845438609,-300.0,0.00014657,2]
[400852629,1767845438618,-195.0,0.00014657,2]
[400852630,1767845438628,-195.0,0.00014657,2]
[400852631,1767845438637,-2500.0,0.00014657,2]
[400852632,1767845438646,-2500.0,0.00014657,2]
[400852634,1767845438655,-583.53826278,0.00014657,2]
[400852635,1767845438664,-300.0,0.00014657,2]
[400852637,1767845438673,-195.0,0.00014657,2]
[400852639,1767845438683,-195.0,0.00014694,2]
[400852641,1767845438692,-250.0,0.00014694,2]
[400852643,1767845438701,-500.0,0.00014763,2]
[400852645,1767845438713,-500.0,0.00014763,2]
[400852647,1767845438722,-500.0,0.00014763,2]
[400852649,1767845438731,-374.30420202,0.00014763,2]
[400852651,1767845438740,-500.0,0.00014763,2]
[400852653,1767845438750,-500.0,0.00014763,2]
[400852655,1767845438759,-206.37,0.00014766,2]
[400852657,1767845438768,-300.0,0.00014769,2]
[400852659,1767845438777,-2055.57150824,0.00014769,2]
[400852661,1767845438788,-300.0,0.00014769,2]
[400852663,1767845438798,-300.0,0.00014769,2]
[400852665,1767845438807,-402.86558321,0.00014769,2]
[400852667,1767845438817,-195.0,0.00014769,2]
[400852669,1767845438826,-255.0,0.00014782,2]
[400852670,1767845438835,-420.0,0.00014865,2]
[400852672,1767845438846,-420.0,0.00014865,2]
[400852674,1767845438855,-2765.0148445,0.00014893,2]
[400852676,1767845438865,-1680.0,0.00014894,2]
[400852678,1767845438875,-39398.23,0.00014903,2]
[400852681,1767845438884,-420.0,0.0001493,2]
[400852682,1767845438894,-3419.62223733,0.00014964,2]
[400852685,1767845438903,-166.66,0.00014967,2]
[400852686,1767845438913,-1562.49,0.00015029,2]
[400852689,1767845438922,-322.6107,0.00015097,2]
[400852690,1767845438932,-578.20924308,0.00015097,2]
[400852692,1767845438941,-300.0,0.00015239,2]
[400852695,1767845438951,-300.0,0.0001524,2]
[400852697,1767845438960,-338.00886573,0.0001531,2]
[400852699,1767845438970,-1000.0,0.0001531,2]
[400852700,1767845438979,-1013.79086394,0.0001531,2]
[400852702,1767845438989,-1000.0,0.0001531,2]
[400852705,1767845438998,-1000.0,0.0001531,2]
[400852707,1767845439008,-1000.0,0.0001531,2]
[400852709,1767845439020,-300.0,0.00015327,2]
[400852710,1767845439029,-3072.2527,0.0001534,2]
[400852712,1767845439038,-787.62614361,0.0001534,2]
[400852714,1767845439048,-202.37576797,0.00015349,2]
[400852716,1767845439057,-790.96089808,0.0001543,2]
[400852718,1767845439067,-151.0,0.0001544,2]
[400852720,1767845439076,-2000.0,0.0001544,2]
[400852722,1767845439085,-500.0,0.0001544,2]
[400852724,1767845439095,-1500.0,0.0001544,2]
[400852726,1767845439104,-500.0,0.0001544,2]
[400852728,1767845439113,-151.0,0.0001544,2]
[400852730,1767845439123,-2000.0,0.0001544,2]
[400852732,1767845439132,-500.0,0.0001544,2]
[400852734,1767845439142,-500.0,0.0001544,2]
[400852736,1767845439151,-1500.0,0.0001544,2]
[400852738,1767845439161,-2000.0,0.0001544,2]
[400852740,1767845439172,-151.0,0.0001544,2]
[400852742,1767845439182,-500.0,0.0001544,2]
[400852744,1767845439191,-500.0,0.0001544,2]
[400852746,1767845439200,-151.0,0.0001544,2]
[400852748,1767845439209,-1500.0,0.0001544,2]
[400852751,1767845439219,-500.0,0.0001544,2]
[400852752,1767845439229,-2000.0,0.0001544,2]
[400852755,1767845439239,-500.0,0.0001544,2]
[400852756,1767845439248,-1500.0,0.0001544,2]
[400852758,1767845439257,-500.0,0.0001544,2]
[400852760,1767845439266,-2000.0,0.0001544,2]
[400852763,1767845439275,-151.0,0.0001544,2]
[400852764,1767845439285,-500.0,0.0001544,2]
[400852766,1767845439294,-1500.0,0.0001544,2]
[400852768,1767845439303,-500.0,0.0001544,2]
[400852770,1767845439312,-2000.0,0.0001544,2]
[400852772,1767845439321,-151.0,0.0001544,2]
[400852774,1767845439330,-500.0,0.0001544,2]
[400852776,1767845439339,-1500.0,0.0001544,2]
[400852778,1767845439347,-500.0,0.0001544,2]
[400852780,1767845439357,-2000.0,0.0001544,2]
[400852783,1767845439366,-574.12855637,0.0001544,2]
[400852784,1767845439375,-151.0,0.0001544,2]
[400852786,1767845439385,-270.7425433,0.0001544,2]
[400852788,1767845439394,-1500.0,0.0001544,2]
[400852790,1767845439403,-500.0,0.0001544,2]
[400852792,1767845439414,-2000.0,0.0001544,2]
[400852794,1767845439423,-1500.0,0.0001544,2]
[400852796,1767845439432,-500.0,0.0001544,2]
[400852798,1767845439441,-2000.0,0.0001544,2]
[400852800,1767845439451,-151.0,0.0001544,2]
[400852802,1767845439459,-1500.0,0.0001544,2]
[400852804,1767845439469,-500.0,0.0001544,2]
[400852806,1767845439478,-2000.0,0.0001544,2]
[400852808,1767845439487,-151.0,0.0001544,2]
[400852810,1767845439496,-1500.0,0.0001544,2]
[400852812,1767845439505,-500.0,0.0001544,2]
[400852814,1767845439514,-2000.0,0.0001544,2]
[400852816,1767845439523,-151.0,0.0001544,2]
[400852818,1767845439531,-1500.0,0.0001544,2]
[400852820,1767845439542,-151.0,0.0001544,2]
[400852822,1767845439551,-620.0,0.0001544,2]
[400852824,1767845439560,-500.0,0.0001544,2]
[400852826,1767845439569,-500.0,0.0001544,2]